[Event "4NCL Div 2 2024-25"]
[Site "England"]
[Date "2024.11.24"]
[Round "2.9"]
[White "Rees, Ioan"]
[Black "Gallana, Marco"]
[Result "1/2-1/2"]
[Annotator "RC"]
[ECO "A48"]
[WhiteElo "2251"]
[BlackElo "2216"]
[PlyCount "121"]
[EventDate "2024.11.23"]
[EventType "team-tourn"]
[EventCountry "ENG"]
[SourceTitle "playchess.com"]
[Source "ChessBase"]
[SourceQuality "1"]
[TimeControl "40/6000+30:3000+30"]

1. d4 {[%emt 0:10:02]} Nf6 {[%emt 0:10:24]} 2. Bf4 {[%emt 0:00:19]} g6 {[%emt 0:00:21]} 3. Nf3 {[%emt 0:00:05]} Bg7 {[%emt 0:00:13]} 4. e3 {[%emt 0:00:07]} d6 {[%emt 0:00:20]} 5. h3 {[%emt 0:00:05]} O-O {[%emt 0:01:10]} 6. Be2 {[%emt 0:00:04]} Nc6 {[%emt 0:00:36]} 7. O-O {[%emt 0:01:33]} e5 {[%emt 0:00:37]} 8. Bh2 {[%emt 0:04:46]} exd4 {[%emt 0:01:44]} 9. exd4 {[%emt 0:00:36]} Re8 {[%emt 0:00:31]} 10. c3 {[%emt 0:04:07]} b6 {[%emt 0:04:34]} 11. a4 {[%emt 0:05:55]} Bb7 {[%emt 0:06:38]} 12. Na3 {[%emt 0:08:04]} a6 {[%emt 0:03:56]} 13. Bc4 {[%emt 0:10:06]} h6 {[%emt 0:07:18]} 14. Nc2 {[%emt 0:08:33]} Qd7 {[%emt 0:25:00]} 15. Ne3 {[%emt 0:00:56]} Ne7 {[%emt 0:03:05]} 16. Qb3 {[%emt 0:06:38]} Rf8 {[%emt 0:00:12]} 17. Nd2 {[%emt 0:07:16]} Nf5 {[%emt 0:05:02]} 18. Rae1 {[%emt 0:12:45]} Nxe3 {[%emt 0:04:02]} 19. fxe3 {[%emt 0:28:03]} Ne4 {[%emt 0:01:43]} 20. Nxe4 {[%emt 0:00:00]} Bxe4 {[%emt 0:00:08]} 21. Bd5 {[%emt 0:00:00]} Rae8 {[%emt 0:12:48]} 22. Bxe4 {[%emt 0:00:00]} Rxe4 {[%emt 0:00:08]} 23. Rf3 {[%emt 0:00:00]} Qe6 {[%emt 0:03:42]} 24. Qxe6 {[%emt 0:00:00]} Rxe6 {[%emt 0:00:29]} 25. Kf2 {[%emt 0:00:00]} Rfe8 {[%emt 0:03:18]} 26. g4 {[%emt 0:00:00]} Bf6 {[%emt 0:02:18]} 27. Ke2 {[%emt 0:00:43]} Bh4 {[%emt 0:02:21]} 28. Bg3 {[%emt 0:00:20]} Bxg3 {[%emt 0:04:29]} 29. Rxg3 {[%emt 0:00:04]} d5 {[%emt 0:00:30]} 30. Kd3 {[%emt 0:00:20]} c5 {[%emt 0:00:17]} 31. Rc1 {[%emt 0:02:58]} c4+ {[%emt 0:01:00]} 32. Kd2 {[%emt 0:00:03]} Rb8 {[%emt 0:02:16]} 33. Ra1 {[%emt 0:01:32]} b5 {[%emt 0:01:04]} 34. axb5 {[%emt 0:00:05]} Rxb5 {[%emt 0:00:07]} 35. Kc1 {[%emt 0:01:06]} Rf6 {[%emt 0:01:18]} 36. Ra2 {[%emt 0:00:17]} Rf1+ {[%emt 0:00:54]} 37. Kc2 {[%emt 0:00:05]} Rf2+ {[%emt 0:00:29]} 38. Kb1 {[%emt 0:00:22]} a5 {[%emt 0:01:59]} 39. g5 {[%emt 0:00:36]} h5 {[%emt 0:00:32]} 40. h4 {[%emt 0:00:36]} Rh2 {[%emt 0:01:34]} 41. b4 {[%emt 0:25:23]} Rxa2 {[%emt 0:21:14]} 42. Kxa2 {[%emt 0:00:06]} axb4 {[%emt 0:00:04]} 43. cxb4 {[%emt 0:00:10]} Rxb4 {[%emt 0:00:05]} 44. Rg1 {[%emt 0:02:38]} Rb3 {[%emt 0:04:09]} 45. Re1 {[%emt 0:00:42]} Rd3 {[%emt 0:00:17]} 46. Kb2 {[%emt 0:00:24]} Rd2+ {[%emt 0:11:01]} 47. Kc3 {[%emt 0:00:20]} Rh2 {[%emt 0:00:05]} 48. e4 {[%emt 0:01:21]} Rh3+ {[%emt 0:05:57]} 49. Kb4 {[%emt 0:01:44]} Rxh4 {[%emt 0:03:57]} 50. exd5 {[%emt 0:00:08]} Rxd4 {[%emt 0:00:08]} 51. Kc5 {[%emt 0:00:11]} Rd2 {[%emt 0:00:19]} 52. Kxc4 {[%emt 0:01:57]} f6 {[%emt 0:02:24]} 53. Re6 {[%emt 0:04:49]} fxg5 {[%emt 0:00:21]} 54. Rxg6+ {[%emt 0:00:09]} Kf7 {[%emt 0:00:08]} 55. Rxg5 {[%emt 0:00:08]} Ke7 {[%emt 0:00:08]} 56. Rxh5 {[%emt 0:00:48]} Kd6 {[%emt 0:00:12]} 57. Rh6+ {[%emt 0:00:13]} Kd7 {[%emt 0:00:05]} 58. Rh1 {[%emt 0:02:03]} Kd6 {[%emt 0:00:14]} 59. Rh6+ {[%emt 0:00:13]} Kd7 {[%emt 0:00:06]} 60. Rh7+ {[%emt 0:00:02]} Kd6 {[%emt 0:00:07]} 61. Rh6+ {[%emt 0:00:02]} 1/2-1/2

[Event "4NCL Div 2 2024-25"]
[Site "England"]
[Date "2024.11.24"]
[Round "2.10"]
[White "Pein, Jonathan"]
[Black "Jones, Steven A"]
[Result "0-1"]
[Annotator "RC"]
[ECO "A45"]
[WhiteElo "2249"]
[BlackElo "2175"]
[PlyCount "128"]
[EventDate "2024.11.23"]
[EventType "team-tourn"]
[EventCountry "ENG"]
[SourceTitle "playchess.com"]
[Source "ChessBase"]
[SourceQuality "1"]
[TimeControl "40/6000+30:3000+30"]

1. d4 {[%emt 0:10:02]} Nf6 {[%emt 0:16:56]} 2. Bf4 {[%emt 0:00:06]} g6 {[%emt 0:00:47]} 3. Nc3 {[%emt 0:00:45]} d5 {[%emt 0:01:17]} 4. e3 {[%emt 0:00:09]} Bg7 {[%emt 0:00:23]} 5. h4 {[%emt 0:00:08]} c6 {[%emt 0:00:22]} 6. Bd3 {[%emt 0:03:31]} h5 {[%emt 0:04:06]} 7. Nf3 {[%emt 0:00:47]} Bg4 {[%emt 0:00:29]} 8. Qd2 {[%emt 0:01:20]} Bxf3 {[%emt 0:00:47]} 9. gxf3 {[%emt 0:00:06]} Nbd7 {[%emt 0:07:15]} 10. O-O-O {[%emt 0:07:57]} Qa5 {[%emt 0:02:08]} 11. Kb1 {[%emt 0:01:19]} e6 {[%emt 0:23:01]} 12. e4 {[%emt 0:05:03]} dxe4 {[%emt 0:00:27]} 13. fxe4 {[%emt 0:01:55]} e5 {[%emt 0:03:46]} 14. dxe5 {[%emt 0:17:53]} Nxe5 {[%emt 0:01:14]} 15. Bxe5 {[%emt 0:20:29]} Qxe5 {[%emt 0:00:30]} 16. f4 {[%emt 0:00:01]} Qe7 {[%emt 0:04:25]} 17. e5 {[%emt 0:01:52]} Ng4 {[%emt 0:00:14]} 18. Bc4 {[%emt 0:03:14]} O-O {[%emt 0:03:17]} 19. Rde1 {[%emt 0:05:43]} b5 {[%emt 0:05:25]} 20. Bd3 {[%emt 0:07:35]} Rad8 {[%emt 0:01:46]} 21. Qe2 {[%emt 0:02:53]} Rd4 {[%emt 0:08:03]} 22. Qf3 {[%emt 0:05:05]} Rfd8 {[%emt 0:02:41]} 23. Ne4 {[%emt 0:10:03]} c5 {[%emt 0:06:13]} 24. Be2 {[%emt 0:01:45]} b4 {[%emt 0:04:53]} 25. Rd1 {[%emt 0:02:26]} Rxe4 {[%emt 0:06:40]} 26. Qxe4 {[%emt 0:00:18]} Nf2 {[%emt 0:00:07]} 27. Qf3 {[%emt 0:01:00]} Rxd1+ {[%emt 0:00:57]} 28. Bxd1 {[%emt 0:00:21]} Nxh1 {[%emt 0:00:06]} 29. Qxh1 {[%emt 0:00:19]} Bh6 {[%emt 0:00:36]} 30. f5 {[%emt 0:00:53]} Qxe5 {[%emt 0:00:38]} 31. fxg6 {[%emt 0:00:04]} fxg6 {[%emt 0:00:30]} 32. c4 {[%emt 0:00:38]} Bg7 {[%emt 0:01:43]} 33. Qd5+ {[%emt 0:00:48]} Qxd5 {[%emt 0:00:14]} 34. cxd5 {[%emt 0:00:00]} Bf6 {[%emt 0:00:38]} 35. d6 {[%emt 0:00:54]} Bxh4 {[%emt 0:00:31]} 36. Kc2 {[%emt 0:00:29]} Bg3 {[%emt 0:01:56]} 37. d7 {[%emt 0:00:12]} Bc7 {[%emt 0:00:06]} 38. Kd3 {[%emt 0:00:53]} Kf7 {[%emt 0:00:15]} 39. Kc4 {[%emt 0:00:33]} Bb6 {[%emt 0:00:19]} 40. Kd5 {[%emt 0:00:18]} Ke7 {[%emt 0:00:34]} 41. b3 {[%emt 0:41:18]} Kxd7 {[%emt 0:20:49]} 42. Bc2 {[%emt 0:01:21]} g5 {[%emt 0:00:25]} 43. Bg6 {[%emt 0:01:15]} h4 {[%emt 0:00:07]} 44. Bf5+ {[%emt 0:06:14]} Ke7 {[%emt 0:00:45]} 45. Ke5 {[%emt 0:01:19]} Bc7+ {[%emt 0:00:19]} 46. Kd5 {[%emt 0:00:45]} Kf6 {[%emt 0:00:14]} 47. Ke4 {[%emt 0:00:50]} Be5 {[%emt 0:00:41]} 48. Bg4 {[%emt 0:00:33]} Bd4 {[%emt 0:00:14]} 49. Bf5 {[%emt 0:00:15]} Bg1 {[%emt 0:00:42]} 50. Bh3 {[%emt 0:00:16]} a5 {[%emt 0:00:37]} 51. Bd7 {[%emt 0:00:34]} Ke7 {[%emt 0:00:59]} 52. Bh3 {[%emt 0:00:38]} Kd6 {[%emt 0:00:35]} 53. Bg4 {[%emt 0:01:11]} Bf2 {[%emt 0:00:57]} 54. Kf3 {[%emt 0:00:28]} Bd4 {[%emt 0:00:26]} 55. Ke4 {[%emt 0:00:03]} Bg1 {[%emt 0:00:07]} 56. Bh3 {[%emt 0:00:34]} a4 {[%emt 0:04:51]} 57. bxa4 {[%emt 0:00:53]} c4 {[%emt 0:00:13]} 58. a5 {[%emt 0:00:44]} b3 {[%emt 0:02:44]} 59. axb3 {[%emt 0:00:16]} cxb3 {[%emt 0:00:05]} 60. Kd3 {[%emt 0:00:44]} Ke5 {[%emt 0:00:32]} 61. Kc3 {[%emt 0:00:27]} Kf4 {[%emt 0:00:10]} 62. Kxb3 {[%emt 0:00:13]} g4 {[%emt 0:00:08]} 63. Bf1 {[%emt 0:00:41]} Ba7 {[%emt 0:00:41]} 64. Kc3 {[%emt 0:00:12]} Ke3 {[%emt 0:00:11]} 0-1

[Event "4NCL Div 2 2024-25"]
[Site "England"]
[Date "2024.11.24"]
[Round "2.11"]
[White "Southcott-Moyers, Indy"]
[Black "Horton, Jamie A"]
[Result "1/2-1/2"]
[Annotator "RC"]
[ECO "D30"]
[WhiteElo "2174"]
[BlackElo "2163"]
[PlyCount "83"]
[EventDate "2024.11.23"]
[EventType "team-tourn"]
[EventCountry "ENG"]
[SourceTitle "playchess.com"]
[Source "ChessBase"]
[SourceQuality "1"]
[TimeControl "40/6000+30:3000+30"]

1. d4 {[%emt 0:10:03]} d5 {[%emt 0:14:40]} 2. c4 {[%emt 0:00:06]} e6 {[%emt 0:00:14]} 3. Nf3 {[%emt 0:00:04]} a6 {[%emt 0:00:39]} 4. Bg5 {[%emt 0:00:04]} Be7 {[%emt 0:00:16]} 5. Bxe7 {[%emt 0:00:08]} Qxe7 {[%emt 0:00:04]} 6. Nbd2 {[%emt 0:02:47]} Nf6 {[%emt 0:00:11]} 7. g3 {[%emt 0:01:20]} c5 {[%emt 0:06:57]} 8. dxc5 {[%emt 0:07:25]} Qxc5 {[%emt 0:04:51]} 9. Rc1 {[%emt 0:15:12]} Nc6 {[%emt 0:03:58]} 10. Bg2 {[%emt 0:06:06]} O-O {[%emt 0:15:17]} 11. O-O {[%emt 0:06:13]} Qe7 {[%emt 0:09:26]} 12. cxd5 {[%emt 0:08:21]} exd5 {[%emt 0:11:14]} 13. Nb3 {[%emt 0:00:46]} Re8 {[%emt 0:09:11]} 14. Nbd4 {[%emt 0:08:33]} Nxd4 {[%emt 0:04:27]} 15. Nxd4 {[%emt 0:04:37]} Bg4 {[%emt 0:01:19]} 16. Qd2 {[%emt 0:02:43]} Rac8 {[%emt 0:00:52]} 17. h3 {[%emt 0:02:04]} Bd7 {[%emt 0:02:15]} 18. Rxc8 {[%emt 0:03:52]} Rxc8 {[%emt 0:00:09]} 19. Rc1 {[%emt 0:00:13]} Rxc1+ {[%emt 0:02:07]} 20. Qxc1 {[%emt 0:00:18]} Qd6 {[%emt 0:00:26]} 21. Qc3 {[%emt 0:01:51]} h5 {[%emt 0:03:20]} 22. h4 {[%emt 0:05:20]} Kf8 {[%emt 0:10:23]} 23. Bf3 {[%emt 0:01:11]} Kg8 {[%emt 0:02:02]} 24. a3 {[%emt 0:04:11]} b6 {[%emt 0:04:42]} 25. Kf1 {[%emt 0:02:22]} Kf8 {[%emt 0:00:24]} 26. Ke1 {[%emt 0:03:28]} Kg8 {[%emt 0:01:58]} 27. Qb4 {[%emt 0:03:34]} Qxb4+ {[%emt 0:00:49]} 28. axb4 {[%emt 0:00:01]} Kf8 {[%emt 0:00:51]} 29. Kd2 {[%emt 0:00:05]} Ke7 {[%emt 0:00:16]} 30. Ke3 {[%emt 0:03:29]} Kd6 {[%emt 0:01:23]} 31. Kd2 {[%emt 0:01:49]} g6 {[%emt 0:00:31]} 32. e3 {[%emt 0:00:21]} Bc8 {[%emt 0:00:40]} 33. Bg2 {[%emt 0:00:30]} Bd7 {[%emt 0:00:10]} 34. f3 {[%emt 0:00:57]} Bc8 {[%emt 0:00:33]} 35. Bf1 {[%emt 0:00:43]} Ne8 {[%emt 0:00:41]} 36. Be2 {[%emt 0:01:21]} Nf6 {[%emt 0:00:06]} 37. Kc3 {[%emt 0:00:42]} Ke5 {[%emt 0:01:01]} 38. f4+ {[%emt 0:00:59]} Kd6 {[%emt 0:00:10]} 39. Bf3 {[%emt 0:00:09]} Bg4 {[%emt 0:00:47]} 40. Bg2 {[%emt 0:00:14]} Bc8 {[%emt 0:00:29]} 41. Bf3 {[%emt 0:53:43]} Bg4 {[%emt 0:22:08]} 42. Bg2 {[%emt 0:00:00]} 1/2-1/2

[Event "4NCL Div 2 2024-25"]
[Site "England"]
[Date "2024.11.24"]
[Round "2.12"]
[White "Maciol, Ryszard"]
[Black "Blackburn, Jonathan L B"]
[Result "0-1"]
[Annotator "RC"]
[ECO "A00"]
[WhiteElo "2125"]
[BlackElo "2197"]
[PlyCount "96"]
[EventDate "2024.11.23"]
[EventType "team-tourn"]
[EventCountry "ENG"]
[SourceTitle "playchess.com"]
[Source "ChessBase"]
[SourceQuality "1"]
[TimeControl "40/6000+30:3000+30"]

1. b4 {[%emt 0:14:58]} e6 {[%emt 0:13:44]} 2. Bb2 {[%emt 0:01:05]} Nf6 {[%emt 0:00:07]} 3. a3 {[%emt 0:00:22]} d5 {[%emt 0:05:13]} 4. e3 {[%emt 0:01:20]} c5 {[%emt 0:01:39]} 5. bxc5 {[%emt 0:00:24]} Bxc5 {[%emt 0:00:06]} 6. Nf3 {[%emt 0:00:05]} Nc6 {[%emt 0:01:58]} 7. Be2 {[%emt 0:00:43]} a6 {[%emt 0:02:10]} 8. d4 {[%emt 0:02:17]} Bd6 {[%emt 0:16:44]} 9. Nbd2 {[%emt 0:00:54]} b5 {[%emt 0:08:20]} 10. a4 {[%emt 0:13:11]} Rb8 {[%emt 0:02:12]} 11. axb5 {[%emt 0:00:53]} axb5 {[%emt 0:00:25]} 12. Nb3 {[%emt 0:01:41]} Ne4 {[%emt 0:06:46]} 13. Nfd2 {[%emt 1:09:07]} f5 {[%emt 0:02:19]} 14. g3 {[%emt 0:00:00]} O-O {[%emt 0:01:56]} 15. f3 {[%emt 0:00:00]} Nf6 {[%emt 0:09:20]} 16. O-O {[%emt 0:00:00]} Qb6 {[%emt 0:04:20]} 17. f4 {[%emt 0:00:00]} Bd7 {[%emt 0:03:07]} 18. Nf3 {[%emt 0:00:00]} Ne4 {[%emt 0:01:19]} 19. Bd3 {[%emt 0:00:00]} Rfc8 {[%emt 0:03:15]} 20. Ne5 {[%emt 0:00:00]} Be8 {[%emt 0:06:30]} 21. g4 {[%emt 0:00:00]} Ne7 {[%emt 0:04:16]} 22. Qe2 {[%emt 0:00:00]} Ra8 {[%emt 0:01:44]} 23. Kh1 {[%emt 0:00:00]} Ra4 {[%emt 0:02:19]} 24. Qg2 {[%emt 0:00:00]} Bxe5 {[%emt 0:06:10]} 25. fxe5 {[%emt 0:00:00]} fxg4 {[%emt 0:01:49]} 26. Bxe4 {[%emt 0:00:00]} dxe4 {[%emt 0:00:04]} 27. Nc5 {[%emt 0:00:00]} Rxc5 {[%emt 0:00:17]} 28. dxc5 {[%emt 0:00:00]} Qxc5 {[%emt 0:00:11]} 29. Rad1 {[%emt 0:00:00]} Nf5 {[%emt 0:01:49]} 30. Qxg4 {[%emt 0:00:00]} Qe7 {[%emt 0:00:55]} 31. Bc1 {[%emt 0:00:00]} Rc4 {[%emt 0:00:54]} 32. Rf2 {[%emt 0:00:00]} h5 {[%emt 0:00:08]} 33. Qh3 {[%emt 0:02:00]} Rc3 {[%emt 0:01:11]} 34. Bd2 {[%emt 0:02:01]} Rxc2 {[%emt 0:01:06]} 35. Bb4 {[%emt 0:00:30]} Qc7 {[%emt 0:00:04]} 36. Rxf5 {[%emt 0:01:47]} exf5 {[%emt 0:00:43]} 37. Qxf5 {[%emt 0:00:08]} Qf7 {[%emt 0:01:18]} 38. Rf1 {[%emt 0:03:14]} Qxf5 {[%emt 0:00:58]} 39. Rxf5 {[%emt 0:00:04]} Bf7 {[%emt 0:00:18]} 40. Rg5 {[%emt 0:02:06]} Rc4 {[%emt 0:02:46]} 41. Be7 {[%emt 0:24:08]} b4 {[%emt 0:22:37]} 42. Bf6 {[%emt 0:03:33]} Rc1+ {[%emt 0:01:01]} 43. Kg2 {[%emt 0:00:06]} g6 {[%emt 0:01:16]} 44. e6 {[%emt 0:03:11]} Bxe6 {[%emt 0:00:12]} 45. Rxg6+ {[%emt 0:01:36]} Kf7 {[%emt 0:00:09]} 46. Rh6 {[%emt 0:00:03]} b3 {[%emt 0:04:12]} 47. Kg3 {[%emt 0:02:52]} Rg1+ {[%emt 0:03:06]} 48. Kf2 {[%emt 0:00:18]} Rd1 {[%emt 0:03:47]} 0-1

[Event "4NCL Div 2 2024-25"]
[Site "England"]
[Date "2024.11.24"]
[Round "2.13"]
[White "Hng, Mei-Xian Eunice"]
[Black "Quinn, John M"]
[Result "1-0"]
[Annotator "RC"]
[ECO "B22"]
[WhiteElo "2082"]
[BlackElo "2102"]
[PlyCount "69"]
[EventDate "2024.11.23"]
[EventType "team-tourn"]
[EventCountry "ENG"]
[SourceTitle "playchess.com"]
[Source "ChessBase"]
[SourceQuality "1"]
[TimeControl "40/6000+30:3000+30"]

1. e4 {[%emt 0:10:27]} c5 {[%emt 0:10:06]} 2. d4 {[%emt 0:00:15]} cxd4 {[%emt 0:00:07]} 3. c3 {[%emt 0:00:04]} Nf6 {[%emt 0:00:47]} 4. e5 {[%emt 0:00:23]} Nd5 {[%emt 0:00:06]} 5. Qxd4 {[%emt 0:00:05]} e6 {[%emt 0:00:06]} 6. Bd3 {[%emt 0:00:03]} Nc6 {[%emt 0:00:53]} 7. Qe4 {[%emt 0:00:04]} f5 {[%emt 0:01:55]} 8. exf6 {[%emt 0:00:16]} Nxf6 {[%emt 0:00:06]} 9. Qh4 {[%emt 0:00:04]} d5 {[%emt 0:08:23]} 10. Nf3 {[%emt 0:07:51]} Bd6 {[%emt 0:02:38]} 11. Bg6+ {[%emt 0:04:25]} Ke7 {[%emt 0:04:40]} 12. Bc2 {[%emt 0:00:19]} e5 {[%emt 0:04:58]} 13. O-O {[%emt 0:03:48]} h6 {[%emt 0:04:55]} 14. Bg6 {[%emt 0:07:43]} Be6 {[%emt 0:06:01]} 15. Re1 {[%emt 0:09:26]} Qd7 {[%emt 0:11:22]} 16. c4 {[%emt 0:15:20]} d4 {[%emt 0:08:10]} 17. c5 {[%emt 0:14:33]} Bc7 {[%emt 0:02:56]} 18. Nbd2 {[%emt 0:00:52]} Kf8 {[%emt 0:09:44]} 19. Ne4 {[%emt 0:16:42]} Nxe4 {[%emt 0:01:39]} 20. Bxe4 {[%emt 0:00:26]} Bd5 {[%emt 0:00:55]} 21. Bd2 {[%emt 0:02:48]} Re8 {[%emt 0:04:13]} 22. b4 {[%emt 0:04:10]} a6 {[%emt 0:00:39]} 23. a3 {[%emt 0:05:12]} Bd8 {[%emt 0:17:45]} 24. Qh5 {[%emt 0:01:49]} Bxe4 {[%emt 0:00:59]} 25. Rxe4 {[%emt 0:00:04]} Qf7 {[%emt 0:00:33]} 26. Qh3 {[%emt 0:00:58]} Bf6 {[%emt 0:01:29]} 27. Rae1 {[%emt 0:00:45]} Rd8 {[%emt 0:06:51]} 28. a4 {[%emt 0:00:37]} Re8 {[%emt 0:00:40]} 29. b5 {[%emt 0:01:14]} axb5 {[%emt 0:00:03]} 30. axb5 {[%emt 0:00:04]} Nd8 {[%emt 0:00:07]} 31. Nxe5 {[%emt 0:00:59]} Bxe5 {[%emt 0:00:35]} 32. Rxe5 {[%emt 0:00:06]} Rxe5 {[%emt 0:00:36]} 33. Rxe5 {[%emt 0:00:04]} Qa2 {[%emt 0:00:21]} 34. Qf5+ {[%emt 0:00:14]} Qf7 {[%emt 0:00:47]} 35. Qc8 {[%emt 0:00:37]} 1-0

[Event "4NCL Div 2 2024-25"]
[Site "England"]
[Date "2024.11.24"]
[Round "2.14"]
[White "Lea, Daniel J"]
[Black "Freeland, Alex"]
[Result "0-1"]
[Annotator "NA RC"]
[ECO "E06"]
[WhiteElo "2006"]
[BlackElo "2031"]
[PlyCount "72"]
[EventDate "2024.11.23"]
[EventType "team-tourn"]
[EventCountry "ENG"]
[SourceTitle "playchess.com"]
[Source "ChessBase"]
[SourceQuality "1"]
[TimeControl "40/6000+30:3000+30"]

1. d4 {[%emt 0:10:03]} Nf6 {[%emt 0:10:05]} 2. c4 {[%emt 0:00:06]} e6 {[%emt 0:00:04]} 3. Nf3 {[%emt 0:00:10]} b6 {[%emt 0:00:08]} 4. g3 {[%emt 0:00:12]} c6 {[%emt 0:01:26]} 5. Bg2 {[%emt 0:02:07]} d5 {[%emt 0:00:30]} 6. O-O {[%emt 0:03:48]} Bb7 {[%emt 0:02:00]} 7. cxd5 {[%emt 0:05:12]} cxd5 {[%emt 0:03:08]} 8. Nc3 {[%emt 0:03:07]} Be7 {[%emt 0:05:11]} 9. Bf4 {[%emt 0:01:29]} O-O {[%emt 0:01:40]} 10. Rc1 {[%emt 0:05:25]} Nc6 {[%emt 0:05:21]} 11. Ne5 {[%emt 0:05:18]} Rc8 {[%emt 0:04:57]} 12. Nxc6 {[%emt 0:06:23]} Bxc6 {[%emt 0:05:28]} 13. Qd3 {[%emt 0:02:32]} Qd7 {[%emt 0:03:39]} 14. Rc2 {[%emt 0:04:48]} Ne8 {[%emt 0:07:43]} 15. Rfc1 {[%emt 0:11:41]} Nd6 {[%emt 0:05:33]} 16. Bxd6 {[%emt 0:02:19]} Qxd6 {[%emt 0:06:36]} 17. Nb5 {[%emt 0:05:43]} Bxb5 {[%emt 0:04:02]} 18. Qxb5 {[%emt 0:00:10]} Rxc2 {[%emt 0:02:52]} 19. Rxc2 {[%emt 0:00:03]} Rd8 {[%emt 0:05:11]} 20. Qa6 {[%emt 0:03:17]} Qd7 {[%emt 0:01:54]} 21. e3 {[%emt 0:02:39]} g6 {[%emt 0:02:00]} 22. Bf1 {[%emt 0:00:31]} Bd6 {[%emt 0:05:33]} 23. Bb5 {[%emt 0:07:48]} Qe7 {[%emt 0:00:18]} 24. Rc8 {[%emt 0:03:58]} Rxc8 {[%emt 0:02:39]} 25. Qxc8+ {[%emt 0:00:09]} Kg7 {[%emt 0:00:23]} 26. Qa8 {[%emt 0:09:38]} Qc7 {[%emt 0:00:57]} 27. Bc6 {[%emt 0:00:39]} h5 {[%emt 0:00:52]} 28. Kf1 {[%emt 0:02:13]} h4 {[%emt 0:03:01]} 29. Kg2 {[%emt 0:02:34]} Qe7 {[%emt 0:02:26]} 30. Qb7 {[%emt 0:02:56]} Qf6 {[%emt 0:01:41]} 31. gxh4 {[%emt 0:04:38]} Qxh4 {[%emt 0:00:29]} 32. h3 {[%emt 0:00:32]} Qg5+ {[%emt 0:00:17]} 33. Kf1 {[%emt 0:00:24]} Qf5 {[%emt 0:00:23]} 34. Be8 {[%emt 0:01:52]} Kf8 {[%emt 0:01:11]} 35. Qd7 {[%emt 0:00:58]} Be7 {[%emt 0:00:09]} 36. Kg2 {[%emt 0:01:20]} Bh4 {[%emt 0:00:25]} 0-1

[Event "4NCL Div 2 2024-25"]
[Site "England"]
[Date "2024.11.24"]
[Round "2.15"]
[White "Turner, Lewis A"]
[Black "Franco, Gaston"]
[Result "1-0"]
[Annotator "NA RC"]
[ECO "B34"]
[WhiteElo "1984"]
[BlackElo "2070"]
[PlyCount "61"]
[EventDate "2024.11.23"]
[EventType "team-tourn"]
[EventCountry "ENG"]
[SourceTitle "playchess.com"]
[Source "ChessBase"]
[SourceQuality "1"]
[TimeControl "40/6000+30:3000+30"]

1. e4 {[%emt 0:10:03]} c5 {[%emt 0:10:11]} 2. Nf3 {[%emt 0:00:11]} Nc6 {[%emt 0:00:10]} 3. d4 {[%emt 0:00:04]} cxd4 {[%emt 0:00:05]} 4. Nxd4 {[%emt 0:00:04]} g6 {[%emt 0:00:10]} 5. Nc3 {[%emt 0:00:14]} Bg7 {[%emt 0:00:06]} 6. Nb3 {[%emt 0:00:06]} Nf6 {[%emt 0:01:04]} 7. Be3 {[%emt 0:00:07]} O-O {[%emt 0:00:35]} 8. Qd2 {[%emt 0:00:06]} a5 {[%emt 0:10:22]} 9. a4 {[%emt 0:01:12]} d5 {[%emt 0:03:23]} 10. exd5 {[%emt 0:03:23]} Nb4 {[%emt 0:00:28]} 11. O-O-O {[%emt 0:00:50]} Bf5 {[%emt 0:04:14]} 12. Nd4 {[%emt 0:00:29]} Nfxd5 {[%emt 0:04:30]} 13. Nxf5 {[%emt 0:09:18]} Nxc3 {[%emt 0:00:51]} 14. bxc3 {[%emt 0:00:28]} Na2+ {[%emt 0:00:51]} 15. Kb2 {[%emt 0:00:50]} Nxc3 {[%emt 0:10:57]} 16. Nh6+ {[%emt 0:05:00]} Bxh6 {[%emt 0:30:10]} 17. Qxd8 {[%emt 0:02:26]} Raxd8 {[%emt 0:09:42]} 18. Rxd8 {[%emt 0:01:30]} Rxd8 {[%emt 0:00:29]} 19. Kxc3 {[%emt 0:01:54]} Bg7+ {[%emt 0:04:15]} 20. Kb3 {[%emt 0:00:17]} Rd1 {[%emt 0:01:04]} 21. c3 {[%emt 0:03:12]} Rb1+ {[%emt 0:15:48]} 22. Ka2 {[%emt 0:02:15]} Rd1 {[%emt 0:00:14]} 23. Kb2 {[%emt 0:00:41]} Be5 {[%emt 0:01:39]} 24. g3 {[%emt 0:01:00]} Kg7 {[%emt 0:00:40]} 25. Bg2 {[%emt 0:00:37]} Rd3 {[%emt 0:00:12]} 26. Rc1 {[%emt 0:00:36]} Rd7 {[%emt 0:00:35]} 27. Bf3 {[%emt 0:00:42]} h5 {[%emt 0:00:44]} 28. Rd1 {[%emt 0:00:27]} Rc7 {[%emt 0:00:17]} 29. Bd4 {[%emt 0:00:13]} Bxd4 {[%emt 0:00:07]} 30. Rxd4 {[%emt 0:00:17]} e6 {[%emt 0:00:28]} 31. Be2 {[%emt 0:00:34]} 1-0

[Event "4NCL Div 2 2024-25"]
[Site "England"]
[Date "2024.11.24"]
[Round "2.16"]
[White "Serbanescu, Diana-Maria"]
[Black "Taylor, William J"]
[Result "1/2-1/2"]
[Annotator "NA RC"]
[ECO "C42"]
[WhiteElo "1992"]
[BlackElo "1994"]
[PlyCount "62"]
[EventDate "2024.11.23"]
[EventType "team-tourn"]
[EventCountry "ENG"]
[SourceTitle "playchess.com"]
[Source "ChessBase"]
[SourceQuality "1"]
[TimeControl "40/6000+30:3000+30"]

1. e4 {[%emt 0:10:03]} e5 {[%emt 0:10:05]} 2. Nf3 {[%emt 0:00:44]} Nf6 {[%emt 0:00:09]} 3. Nxe5 {[%emt 0:00:34]} Nxe4 {[%emt 0:00:07]} 4. Nf3 {[%emt 0:21:07]} d5 {[%emt 0:03:41]} 5. d3 {[%emt 0:06:00]} Nf6 {[%emt 0:00:42]} 6. Bg5 {[%emt 0:03:45]} h6 {[%emt 0:02:47]} 7. Bh4 {[%emt 0:01:00]} Be7 {[%emt 0:01:50]} 8. Be2 {[%emt 0:01:05]} O-O {[%emt 0:03:14]} 9. O-O {[%emt 0:00:37]} c5 {[%emt 0:02:13]} 10. Re1 {[%emt 0:07:28]} Nc6 {[%emt 0:00:35]} 11. Nc3 {[%emt 0:01:20]} d4 {[%emt 0:07:42]} 12. Bxf6 {[%emt 0:00:24]} Bxf6 {[%emt 0:00:06]} 13. Ne4 {[%emt 0:00:04]} Be7 {[%emt 0:00:15]} 14. Nfd2 {[%emt 0:03:14]} Be6 {[%emt 0:06:05]} 15. a3 {[%emt 0:07:12]} Qd7 {[%emt 0:02:37]} 16. f4 {[%emt 0:04:41]} f5 {[%emt 0:03:47]} 17. Nf2 {[%emt 0:00:56]} Bf6 {[%emt 0:18:29]} 18. Bf3 {[%emt 0:12:36]} Rae8 {[%emt 0:05:23]} 19. Bh5 {[%emt 0:01:58]} Rd8 {[%emt 0:05:26]} 20. Qf3 {[%emt 0:03:45]} Kh7 {[%emt 0:11:29]} 21. Qg3 {[%emt 0:01:42]} Bf7 {[%emt 0:02:25]} 22. Bxf7 {[%emt 0:01:07]} Rxf7 {[%emt 0:01:12]} 23. Re2 {[%emt 0:01:59]} Re7 {[%emt 0:02:17]} 24. Rae1 {[%emt 0:00:08]} Rde8 {[%emt 0:00:38]} 25. Qf3 {[%emt 0:02:48]} Re3 {[%emt 0:06:41]} 26. Rxe3 {[%emt 0:02:37]} dxe3 {[%emt 0:00:03]} 27. Rxe3 {[%emt 0:00:08]} Bxb2 {[%emt 0:05:15]} 28. Nc4 {[%emt 0:01:12]} Bd4 {[%emt 0:01:24]} 29. Rxe8 {[%emt 0:03:21]} Qxe8 {[%emt 0:00:02]} 30. Kf1 {[%emt 0:00:06]} b5 {[%emt 0:01:27]} 31. Nd6 {[%emt 0:01:29]} Qe3 {[%emt 0:03:25]} 1/2-1/2